[Event "*** SCC Grand Prix: Titled Tuesday Blitz"]
[Site "Chess.com"]
[Date "2020.07.21"]
[Round "3"]
[White "manmanlai1"]
[Black "GregShahade"]
[Result "1/2-1/2"]
[WhiteElo "2500"]
[BlackElo "2701"]
[TimeControl "180+1"]
[EndTime "10:29:16 PDT"]
[Termination "Game drawn by repetition"]

1. e4 {[%clk 0:03:00.9]} 1... e5 {[%clk 0:03:00.1]} 2. Nf3 {[%clk 0:03:00.7]}
2... Nc6 {[%clk 0:03:00.4]} 3. Bc4 {[%clk 0:03:01]} 3... Nf6 {[%clk 0:02:59.9]}
4. d3 {[%clk 0:02:59.3]} 4... Bc5 {[%clk 0:02:59.8]} 5. O-O {[%clk 0:02:57.5]}
5... a6 {[%clk 0:02:58.2]} 6. c3 {[%clk 0:02:57.6]} 6... d6 {[%clk 0:02:58.1]}
7. a4 {[%clk 0:02:55.1]} 7... Ba7 {[%clk 0:02:57.6]} 8. Nbd2 {[%clk 0:02:54.3]}
8... O-O {[%clk 0:02:57.1]} 9. h3 {[%clk 0:02:51.7]} 9... h6 {[%clk 0:02:56.9]}
10. Re1 {[%clk 0:02:51.4]} 10... Re8 {[%clk 0:02:57.3]} 11. Bb3 {[%clk 0:02:47]}
11... Be6 {[%clk 0:02:57.4]} 12. Bc2 {[%clk 0:02:44.1]} 12... d5 {[%clk
0:02:56.8]} 13. Nf1 {[%clk 0:02:37.8]} 13... Qd6 {[%clk 0:02:47.3]} 14. Ng3
{[%clk 0:02:35.2]} 14... Rad8 {[%clk 0:02:47.3]} 15. Qe2 {[%clk 0:02:32.8]}
15... Nd7 {[%clk 0:02:30.5]} 16. Nh4 {[%clk 0:02:29.3]} 16... dxe4 {[%clk
0:01:42.7]} 17. dxe4 {[%clk 0:02:30.2]} 17... Ne7 {[%clk 0:01:42.1]} 18. Qh5
{[%clk 0:01:39.4]} 18... Nf6 {[%clk 0:01:37.3]} 19. Qf3 {[%clk 0:01:38.9]} 19...
Nh7 {[%clk 0:01:31.7]} 20. Nhf5 {[%clk 0:01:30.3]} 20... Nxf5 {[%clk 0:01:27.5]}
21. Nxf5 {[%clk 0:01:28.2]} 21... Bxf5 {[%clk 0:01:19.3]} 22. Qxf5 {[%clk
0:01:25.7]} 22... Qf6 {[%clk 0:01:10.2]} 23. Qxf6 {[%clk 0:01:21]} 23... Nxf6
{[%clk 0:01:11.1]} 24. Kf1 {[%clk 0:01:19.8]} 24... Rd7 {[%clk 0:01:08]} 25. a5
{[%clk 0:00:55.2]} 25... Red8 {[%clk 0:01:04.8]} 26. g3 {[%clk 0:00:54.9]} 26...
Rd6 {[%clk 0:00:52.9]} 27. b3 {[%clk 0:00:53.6]} 27... Nd7 {[%clk 0:00:43.1]}
28. b4 {[%clk 0:00:45]} 28... Nf8 {[%clk 0:00:30.6]} 29. Re2 {[%clk 0:00:28.3]}
29... Ne6 {[%clk 0:00:28.7]} 30. h4 {[%clk 0:00:26.5]} 30... c6 {[%clk
0:00:26.6]} 31. Ke1 {[%clk 0:00:23.3]} 31... Kf8 {[%clk 0:00:26.9]} 32. Bd2
{[%clk 0:00:22.2]} 32... c5 {[%clk 0:00:18.8]} 33. Be3 {[%clk 0:00:20.9]} 33...
Ra8 {[%clk 0:00:19]} 34. Bb3 {[%clk 0:00:16.5]} 34... cxb4 {[%clk 0:00:18.2]}
35. Bxa7 {[%clk 0:00:16.1]} 35... Rxa7 {[%clk 0:00:18]} 36. Bxe6 {[%clk
0:00:17]} 36... Rxe6 {[%clk 0:00:15.8]} 37. cxb4 {[%clk 0:00:17.9]} 37... Ra8
{[%clk 0:00:14.5]} 38. Rc2 {[%clk 0:00:17.4]} 38... Rd8 {[%clk 0:00:14.4]} 39.
Rd1 {[%clk 0:00:17.5]} 39... Rxd1+ {[%clk 0:00:12.4]} 40. Kxd1 {[%clk
0:00:18.4]} 40... Rd6+ {[%clk 0:00:12]} 41. Rd2 {[%clk 0:00:18.8]} 41... Ke7
{[%clk 0:00:12]} 42. Ke2 {[%clk 0:00:18.6]} 42... Rxd2+ {[%clk 0:00:11.9]} 43.
Kxd2 {[%clk 0:00:19.5]} 43... Kd6 {[%clk 0:00:12.4]} 44. Kd3 {[%clk 0:00:19.9]}
44... Kc6 {[%clk 0:00:12.7]} 45. Kc4 {[%clk 0:00:20.2]} 45... f6 {[%clk
0:00:13.1]} 46. h5 {[%clk 0:00:17.1]} 46... b6 {[%clk 0:00:12.7]} 47. axb6
{[%clk 0:00:14.5]} 47... Kxb6 {[%clk 0:00:13.2]} 48. Kc3 {[%clk 0:00:08]} 48...
Kc6 {[%clk 0:00:12.3]} 49. Kc2 {[%clk 0:00:06.3]} 49... Kb5 {[%clk 0:00:11.9]}
50. Kb3 {[%clk 0:00:06.3]} 50... Kb6 {[%clk 0:00:12.3]} 51. Ka4 {[%clk
0:00:06.4]} 51... Kc6 {[%clk 0:00:03.9]} 52. Ka5 {[%clk 0:00:07.3]} 52... Kb7
{[%clk 0:00:04.4]} 53. b5 {[%clk 0:00:07.9]} 53... axb5 {[%clk 0:00:04.9]} 54.
Kxb5 {[%clk 0:00:08.8]} 54... Kc7 {[%clk 0:00:05.4]} 55. Kc5 {[%clk 0:00:09.5]}
55... Kd7 {[%clk 0:00:05.8]} 56. Kd5 {[%clk 0:00:10.4]} 56... Ke7 {[%clk
0:00:06.2]} 57. Kc6 {[%clk 0:00:10.8]} 57... Ke6 {[%clk 0:00:06.7]} 58. g4
{[%clk 0:00:11.2]} 58... Ke7 {[%clk 0:00:07.1]} 59. Kc7 {[%clk 0:00:11.6]} 59...
Ke6 {[%clk 0:00:07]} 60. Kd8 {[%clk 0:00:11.9]} 60... Kf7 {[%clk 0:00:07.4]} 61.
Kd7 {[%clk 0:00:12.3]} 61... Kf8 {[%clk 0:00:07.8]} 62. Ke6 {[%clk 0:00:12.3]}
62... Ke8 {[%clk 0:00:08.3]} 63. Kd6 {[%clk 0:00:11.9]} 63... Kd8 {[%clk
0:00:08.3]} 64. Kc5 {[%clk 0:00:11]} 64... Kc7 {[%clk 0:00:08.3]} 65. Kd5 {[%clk
0:00:11.2]} 65... Kd7 {[%clk 0:00:08.7]} 66. Kc5 {[%clk 0:00:11.5]} 66... Kc7
{[%clk 0:00:09.2]} 67. Kd5 {[%clk 0:00:11.4]} 67... Kd7 {[%clk 0:00:09.6]} 68.
f3 {[%clk 0:00:11.7]} 68... Ke7 {[%clk 0:00:09.5]} 69. Kc6 {[%clk 0:00:11.8]}
69... Ke6 {[%clk 0:00:09.9]} 70. Kc7 {[%clk 0:00:11.9]} 70... Ke7 {[%clk
0:00:10.4]} 71. Kc6 {[%clk 0:00:10.6]} 71... Ke6 {[%clk 0:00:10.9]} 72. Kc7
{[%clk 0:00:10.3]} 72... Ke7 {[%clk 0:00:11.3]} 73. Kc8 {[%clk 0:00:10.7]} 73...
Ke8 {[%clk 0:00:11.7]} 74. Kc7 {[%clk 0:00:10.9]} 74... Ke7 {[%clk 0:00:12.2]}
1/2-1/2

[Event "*** SCC Grand Prix: Titled Tuesday Blitz"]
[Site "Chess.com"]
[Date "2020.07.21"]
[Round "3"]
[White "LisikValera"]
[Black "FeketeBarika"]
[Result "0-1"]
[WhiteElo "2459"]
[BlackElo "2183"]
[TimeControl "180+1"]
[EndTime "10:29:17 PDT"]
[Termination "FeketeBarika won on time"]

1. d4 {[%clk 0:02:38.8]} 1... d5 {[%clk 0:03:00.9]} 2. Bf4 {[%clk 0:02:36.9]}
2... Nf6 {[%clk 0:02:54.3]} 3. e3 {[%clk 0:02:37]} 3... c5 {[%clk 0:02:50]} 4.
c3 {[%clk 0:02:36.7]} 4... Nc6 {[%clk 0:02:48.7]} 5. Nf3 {[%clk 0:02:36.3]} 5...
e6 {[%clk 0:02:48.2]} 6. Nbd2 {[%clk 0:02:33.8]} 6... Be7 {[%clk 0:02:47.9]} 7.
Bd3 {[%clk 0:02:32.8]} 7... O-O {[%clk 0:02:47.9]} 8. Ne5 {[%clk 0:02:33.1]}
8... Bd7 {[%clk 0:02:37.4]} 9. Qf3 {[%clk 0:02:31.5]} 9... c4 {[%clk 0:02:26.3]}
10. Bc2 {[%clk 0:02:29.2]} 10... b5 {[%clk 0:02:26.8]} 11. Qh3 {[%clk
0:02:21.1]} 11... b4 {[%clk 0:02:22.5]} 12. g4 {[%clk 0:02:12.1]} 12... bxc3
{[%clk 0:02:17.7]} 13. bxc3 {[%clk 0:02:11.9]} 13... g6 {[%clk 0:02:11.5]} 14.
Qh6 {[%clk 0:02:01.7]} 14... Re8 {[%clk 0:02:07.7]} 15. Ndf3 {[%clk 0:01:56.3]}
15... Bf8 {[%clk 0:02:07.2]} 16. Qh3 {[%clk 0:01:53.7]} 16... Nxe5 {[%clk
0:01:59.3]} 17. Nxe5 {[%clk 0:01:46.9]} 17... Ne4 {[%clk 0:01:57.9]} 18. Bxe4
{[%clk 0:01:41.1]} 18... dxe4 {[%clk 0:01:58.8]} 19. O-O {[%clk 0:01:29.6]}
19... Rc8 {[%clk 0:01:53.4]} 20. Qg2 {[%clk 0:01:17.2]} 20... f5 {[%clk
0:01:27.2]} 21. gxf5 {[%clk 0:01:17.2]} 21... exf5 {[%clk 0:01:28.1]} 22. Rfb1
{[%clk 0:01:16.5]} 22... Be6 {[%clk 0:01:21.4]} 23. Rb7 {[%clk 0:01:05.6]} 23...
Bd5 {[%clk 0:00:50.1]} 24. Rxa7 {[%clk 0:00:50.1]} 24... Qb6 {[%clk 0:00:49.1]}
25. Rd7 {[%clk 0:00:48.7]} 25... Be6 {[%clk 0:00:48.6]} 26. Rxh7 {[%clk
0:00:17.6]} 26... Kxh7 {[%clk 0:00:38.7]} 27. Qxg6+ {[%clk 0:00:17.3]} 27... Kh8
{[%clk 0:00:37.6]} 28. Kh1 {[%clk 0:00:17.4]} 28... Qb7 {[%clk 0:00:26.1]} 29.
Rg1 {[%clk 0:00:10.1]} 29... Bg7 {[%clk 0:00:25]} 30. Qh5+ {[%clk 0:00:08]}
30... Kg8 {[%clk 0:00:25.3]} 31. Bh6 {[%clk 0:00:08]} 31... Re7 {[%clk
0:00:25.7]} 32. Qg6 {[%clk 0:00:06.8]} 32... Bd5 {[%clk 0:00:20.2]} 33. Bg5
{[%clk 0:00:05.5]} 33... Rec7 {[%clk 0:00:17.8]} 34. Qxf5 {[%clk 0:00:04.7]}
34... Rf8 {[%clk 0:00:18]} 35. Qg4 {[%clk 0:00:03.8]} 35... Rxf2 {[%clk
0:00:16.9]} 36. Bh6 {[%clk 0:00:03.6]} 36... Rf8 {[%clk 0:00:16.4]} 37. Qg6
{[%clk 0:00:03.3]} 37... Re7 {[%clk 0:00:16.1]} 38. Bg5 {[%clk 0:00:03]} 38...
Rc7 {[%clk 0:00:15.5]} 39. Qh5 {[%clk 0:00:03.9]} 39... Qc8 {[%clk 0:00:13.9]}
40. Bh6 {[%clk 0:00:04]} 40... Qe8 {[%clk 0:00:13.3]} 41. Ng6 {[%clk 0:00:04]}
41... Bf7 {[%clk 0:00:09.9]} 42. Qa5 {[%clk 0:00:02.4]} 42... Bxh6 {[%clk
0:00:09.3]} 43. Qxc7 {[%clk 0:00:01.8]} 43... Bg7 {[%clk 0:00:09.9]} 44. Qc5
{[%clk 0:00:01.8]} 44... Bxg6 {[%clk 0:00:09.8]} 45. Qxc4+ {[%clk 0:00:02.7]}
45... Bf7 {[%clk 0:00:10.1]} 46. Qc5 {[%clk 0:00:03.3]} 46... Be6 {[%clk
0:00:10.1]} 47. Qg5 {[%clk 0:00:04.2]} 47... Qf7 {[%clk 0:00:10.2]} 48. d5
{[%clk 0:00:04.2]} 48... Qf3+ {[%clk 0:00:10]} 49. Qg2 {[%clk 0:00:05.1]} 49...
Qxg2+ {[%clk 0:00:10.1]} 50. Rxg2 {[%clk 0:00:05.3]} 50... Bxd5 {[%clk 0:00:11]}
51. Rd2 {[%clk 0:00:05.4]} 51... Bf7 {[%clk 0:00:11.5]} 52. Kg2 {[%clk 0:00:06]}
52... Bxc3 {[%clk 0:00:11.2]} 53. Rc2 {[%clk 0:00:05.7]} 53... Bg7 {[%clk
0:00:12.1]} 54. Kg3 {[%clk 0:00:06.2]} 54... Rd8 {[%clk 0:00:12.3]} 55. Kf4
{[%clk 0:00:06]} 55... Bg6 {[%clk 0:00:12.7]} 56. Rb2 {[%clk 0:00:05.1]} 56...
Kh7 {[%clk 0:00:13]} 57. a4 {[%clk 0:00:05.2]} 57... Rf8+ {[%clk 0:00:13.2]} 58.
Kg5 {[%clk 0:00:03.8]} 58... Rf5+ {[%clk 0:00:12.6]} 59. Kg4 {[%clk 0:00:03.6]}
59... Rf3 {[%clk 0:00:13.5]} 60. Ra2 {[%clk 0:00:04]} 60... Rxe3 {[%clk
0:00:13.3]} 61. a5 {[%clk 0:00:04.5]} 61... Rd3 {[%clk 0:00:13.4]} 62. a6 {[%clk
0:00:04.8]} 62... Rd8 {[%clk 0:00:13.8]} 63. a7 {[%clk 0:00:05.1]} 63... Ra8
{[%clk 0:00:14.4]} 64. Kf4 {[%clk 0:00:05.5]} 64... Bh6+ {[%clk 0:00:14.1]} 65.
Ke5 {[%clk 0:00:05.1]} 65... e3 {[%clk 0:00:14.6]} 66. Kd4 {[%clk 0:00:05.1]}
66... Bh5 {[%clk 0:00:14.6]} 67. Rb2 {[%clk 0:00:02]} 67... e2 {[%clk 0:00:15]}
68. Rb7+ {[%clk 0:00:01.7]} 68... Bg7+ {[%clk 0:00:15.5]} 69. Kd3 {[%clk
0:00:02]} 69... e1=Q {[%clk 0:00:16]} 0-1

[Event "*** SCC Grand Prix: Titled Tuesday Blitz"]
[Site "Chess.com"]
[Date "2020.07.21"]
[Round "3"]
[White "checkmatequen"]
[Black "ThePatrick27"]
[Result "1-0"]
[WhiteElo "2306"]
[BlackElo "2522"]
[TimeControl "180+1"]
[EndTime "10:29:19 PDT"]
[Termination "checkmatequen won by resignation"]

1. e4 {[%clk 0:03:00.9]} 1... e5 {[%clk 0:02:59.2]} 2. Nf3 {[%clk 0:02:58.7]}
2... Nc6 {[%clk 0:02:59.2]} 3. Bb5 {[%clk 0:02:55.7]} 3... a6 {[%clk 0:02:57.7]}
4. Ba4 {[%clk 0:02:56]} 4... Nf6 {[%clk 0:02:56.6]} 5. d3 {[%clk 0:02:56.3]}
5... b5 {[%clk 0:02:55.8]} 6. Bb3 {[%clk 0:02:55.3]} 6... Be7 {[%clk 0:02:56.3]}
7. c3 {[%clk 0:02:55.8]} 7... d6 {[%clk 0:02:55.8]} 8. O-O {[%clk 0:02:56.2]}
8... O-O {[%clk 0:02:55.2]} 9. Re1 {[%clk 0:02:56.2]} 9... Na5 {[%clk
0:02:54.4]} 10. Bc2 {[%clk 0:02:56.2]} 10... c5 {[%clk 0:02:54.9]} 11. Nbd2
{[%clk 0:02:56.7]} 11... Qc7 {[%clk 0:02:54.2]} 12. Nf1 {[%clk 0:02:57.1]} 12...
Re8 {[%clk 0:02:52]} 13. Ng3 {[%clk 0:02:51.5]} 13... Nc6 {[%clk 0:02:39.9]} 14.
h3 {[%clk 0:02:45.2]} 14... Nd7 {[%clk 0:02:12.1]} 15. Nf5 {[%clk 0:02:43]}
15... Bf8 {[%clk 0:02:12.3]} 16. N3h4 {[%clk 0:02:40.5]} 16... Ne7 {[%clk
0:01:36.1]} 17. Qg4 {[%clk 0:02:37.8]} 17... Ng6 {[%clk 0:01:31.3]} 18. a4
{[%clk 0:02:32.1]} 18... Nf6 {[%clk 0:01:27.6]} 19. Qf3 {[%clk 0:02:29.9]} 19...
Bd7 {[%clk 0:01:21.4]} 20. Bg5 {[%clk 0:02:10.3]} 20... Nxh4 {[%clk 0:01:02.7]}
21. Bxh4 {[%clk 0:02:04.9]} 21... Be7 {[%clk 0:00:59.4]} 22. Nxe7+ {[%clk
0:02:04]} 22... Rxe7 {[%clk 0:00:59.3]} 23. Bxf6 {[%clk 0:02:04.5]} 23... gxf6
{[%clk 0:01:00.2]} 24. Qxf6 {[%clk 0:02:05.1]} 24... Re6 {[%clk 0:01:00.6]} 25.
Qh4 {[%clk 0:02:02.2]} 25... Rb8 {[%clk 0:00:57.7]} 26. Re3 {[%clk 0:02:01.3]}
26... Rg6 {[%clk 0:00:57.7]} 27. axb5 {[%clk 0:01:57.5]} 27... axb5 {[%clk
0:00:58.6]} 28. Bd1 {[%clk 0:01:53.3]} 28... b4 {[%clk 0:00:56.7]} 29. Bh5
{[%clk 0:01:53.4]} 29... Rg7 {[%clk 0:00:56.9]} 30. Rg3 {[%clk 0:01:52.3]} 30...
Be6 {[%clk 0:00:53.8]} 31. c4 {[%clk 0:01:47.8]} 31... Qd8 {[%clk 0:00:43.9]}
32. Rxg7+ {[%clk 0:01:40.8]} 32... Kxg7 {[%clk 0:00:44.2]} 33. Qxd8 {[%clk
0:01:24.7]} 33... Rxd8 {[%clk 0:00:45.1]} 34. Ra7 {[%clk 0:01:21.1]} 34... Kf6
{[%clk 0:00:45.2]} 35. Bd1 {[%clk 0:01:17.8]} 35... Rg8 {[%clk 0:00:44.6]} 36.
Kh2 {[%clk 0:01:17.4]} 36... h6 {[%clk 0:00:42.1]} 37. g4 {[%clk 0:01:17.6]}
37... h5 {[%clk 0:00:37.3]} 38. Kg3 {[%clk 0:01:12.4]} 38... hxg4 {[%clk
0:00:36.8]} 39. hxg4 {[%clk 0:01:13.3]} 39... Rh8 {[%clk 0:00:36.9]} 40. Bf3
{[%clk 0:01:07.7]} 40... Rh7 {[%clk 0:00:28.4]} 41. Ra1 {[%clk 0:01:05.3]} 41...
Rh8 {[%clk 0:00:27.8]} 42. Bg2 {[%clk 0:00:49]} 42... Kg5 {[%clk 0:00:27.8]} 43.
f3 {[%clk 0:00:45.9]} 43... Kf6 {[%clk 0:00:26.6]} 44. f4 {[%clk 0:00:33.9]}
44... exf4+ {[%clk 0:00:25.9]} 45. Kxf4 {[%clk 0:00:34.8]} 45... Rh4 {[%clk
0:00:25.5]} 46. Bf3 {[%clk 0:00:34.5]} 46... Rh2 {[%clk 0:00:25.8]} 47. Rb1
{[%clk 0:00:17.5]} 47... Ke7 {[%clk 0:00:23.2]} 48. b3 {[%clk 0:00:12.5]} 48...
f6 {[%clk 0:00:23.4]} 49. Kg3 {[%clk 0:00:12.3]} 49... Rd2 {[%clk 0:00:22.8]}
50. Rd1 {[%clk 0:00:10.1]} 50... Rb2 {[%clk 0:00:23.5]} 51. Rh1 {[%clk 0:00:10]}
51... Rxb3 {[%clk 0:00:23.6]} 52. Rh7+ {[%clk 0:00:10.5]} 52... Kf8 {[%clk
0:00:22.9]} 53. Kf4 {[%clk 0:00:04.9]} 53... Rxd3 {[%clk 0:00:22.7]} 54. Rb7
{[%clk 0:00:04.5]} 54... b3 {[%clk 0:00:21.9]} 55. Be2 {[%clk 0:00:03.2]} 55...
Rc3 {[%clk 0:00:21.3]} 56. g5 {[%clk 0:00:01.5]} 56... fxg5+ {[%clk 0:00:21.1]}
57. Kxg5 {[%clk 0:00:02.4]} 57... Bf7 {[%clk 0:00:19.3]} 58. Kf6 {[%clk
0:00:02.4]} 58... Be8 {[%clk 0:00:18.9]} 59. Rb8 {[%clk 0:00:02]} 59... Rc2
{[%clk 0:00:18.4]} 60. Bh5 {[%clk 0:00:02.3]} 60... Rf2+ {[%clk 0:00:18.4]} 61.
Ke6 {[%clk 0:00:02.8]} 61... Kg7 {[%clk 0:00:17.6]} 62. Bxe8 {[%clk 0:00:01.8]}
62... b2 {[%clk 0:00:18.1]} 63. Bc6 {[%clk 0:00:01.7]} 63... Rd2 {[%clk
0:00:17.6]} 64. Bd5 {[%clk 0:00:01.9]} 64... Kh6 {[%clk 0:00:16.7]} 65. Kxd6
{[%clk 0:00:02.3]} 65... Kg5 {[%clk 0:00:16.7]} 66. Kxc5 {[%clk 0:00:02.6]}
66... Kf4 {[%clk 0:00:17.6]} 67. Kd6 {[%clk 0:00:02.1]} 67... Ke3 {[%clk
0:00:17.8]} 68. c5 {[%clk 0:00:02.6]} 68... Kd4 {[%clk 0:00:18.3]} 69. c6 {[%clk
0:00:02.6]} 69... Kc3 {[%clk 0:00:18.8]} 70. c7 {[%clk 0:00:02.5]} 70... b1=Q
{[%clk 0:00:18.8]} 71. Rxb1 {[%clk 0:00:02.2]} 71... Kd4 {[%clk 0:00:19.4]} 72.
Rc1 {[%clk 0:00:01.6]} 72... Rc2 {[%clk 0:00:20.3]} 73. Rxc2 {[%clk 0:00:01.4]}
73... Ke3 {[%clk 0:00:20.8]} 74. Rd2 {[%clk 0:00:02.3]} 1-0

[Event "*** SCC Grand Prix: Titled Tuesday Blitz"]
[Site "Chess.com"]
[Date "2020.07.21"]
[Round "3"]
[White "Killertoy"]
[Black "amatatanav"]
[Result "0-1"]
[WhiteElo "2230"]
[BlackElo "2508"]
[TimeControl "180+1"]
[EndTime "10:29:26 PDT"]
[Termination "amatatanav won on time"]

1. e4 {[%clk 0:03:00.9]} 1... c5 {[%clk 0:02:59.5]} 2. Nf3 {[%clk 0:03:00.6]}
2... Nc6 {[%clk 0:02:59.9]} 3. d4 {[%clk 0:03:00.9]} 3... cxd4 {[%clk
0:03:00.8]} 4. Nxd4 {[%clk 0:03:00.8]} 4... g6 {[%clk 0:03:01.3]} 5. c4 {[%clk
0:03:00.4]} 5... Nf6 {[%clk 0:03:00.3]} 6. Nc3 {[%clk 0:02:59.9]} 6... d6 {[%clk
0:03:00.4]} 7. Be2 {[%clk 0:02:59.6]} 7... Nxd4 {[%clk 0:03:00.1]} 8. Qxd4
{[%clk 0:02:59.3]} 8... Bg7 {[%clk 0:03:01]} 9. Be3 {[%clk 0:02:59.3]} 9... O-O
{[%clk 0:02:56.7]} 10. Qd2 {[%clk 0:02:59.5]} 10... Be6 {[%clk 0:02:52.7]} 11.
Rc1 {[%clk 0:02:56.9]} 11... a5 {[%clk 0:02:47]} 12. O-O {[%clk 0:02:54.3]}
12... a4 {[%clk 0:02:46.6]} 13. f3 {[%clk 0:02:53.5]} 13... Qa5 {[%clk 0:02:45]}
14. Nd5 {[%clk 0:02:33.4]} 14... Nxd5 {[%clk 0:02:16.5]} 15. cxd5 {[%clk
0:02:28.9]} 15... Qxd2 {[%clk 0:01:57.1]} 16. Bxd2 {[%clk 0:02:28.6]} 16... Bd4+
{[%clk 0:01:56.9]} 17. Kh1 {[%clk 0:02:28.1]} 17... Bc8 {[%clk 0:01:34.2]} 18.
Rc7 {[%clk 0:02:17]} 18... Bb6 {[%clk 0:01:08.5]} 19. Rc2 {[%clk 0:01:55.4]}
19... Bd7 {[%clk 0:01:04.7]} 20. Rfc1 {[%clk 0:01:51.2]} 20... Bc5 {[%clk
0:01:01.5]} 21. a3 {[%clk 0:01:31.5]} 21... Rfc8 {[%clk 0:00:48.7]} 22. g4
{[%clk 0:01:23.5]} 22... e6 {[%clk 0:00:47.7]} 23. Bc4 {[%clk 0:01:12.1]} 23...
e5 {[%clk 0:00:42.5]} 24. Kg2 {[%clk 0:01:02.1]} 24... f5 {[%clk 0:00:42.2]} 25.
h3 {[%clk 0:00:46.9]} 25... Kf7 {[%clk 0:00:34]} 26. Be1 {[%clk 0:00:46.3]}
26... Bd4 {[%clk 0:00:31.2]} 27. Bf2 {[%clk 0:00:43.1]} 27... Bxf2 {[%clk
0:00:29.1]} 28. Kxf2 {[%clk 0:00:43]} 28... Rc5 {[%clk 0:00:29.5]} 29. Bd3
{[%clk 0:00:39.6]} 29... Rac8 {[%clk 0:00:25.6]} 30. Rxc5 {[%clk 0:00:39]} 30...
Rxc5 {[%clk 0:00:26.5]} 31. Rxc5 {[%clk 0:00:38.6]} 31... dxc5 {[%clk
0:00:27.4]} 32. gxf5 {[%clk 0:00:38.4]} 32... gxf5 {[%clk 0:00:28.3]} 33. exf5
{[%clk 0:00:30.4]} 33... Ke7 {[%clk 0:00:15.9]} 34. Ke2 {[%clk 0:00:27.5]} 34...
h6 {[%clk 0:00:14.9]} 35. h4 {[%clk 0:00:26.7]} 35... b5 {[%clk 0:00:14.3]} 36.
Kd2 {[%clk 0:00:26.1]} 36... Be8 {[%clk 0:00:09.1]} 37. Be4 {[%clk 0:00:25.4]}
37... Kd6 {[%clk 0:00:08.5]} 38. f6 {[%clk 0:00:24.6]} 38... Bf7 {[%clk
0:00:08.2]} 39. Ke3 {[%clk 0:00:23.6]} 39... b4 {[%clk 0:00:06.5]} 40. f4 {[%clk
0:00:22.6]} 40... exf4+ {[%clk 0:00:06]} 41. Kxf4 {[%clk 0:00:22.2]} 41... c4
{[%clk 0:00:04.1]} 42. axb4 {[%clk 0:00:19.9]} 42... c3 {[%clk 0:00:04]} 43.
bxc3 {[%clk 0:00:19.2]} 43... a3 {[%clk 0:00:04.2]} 44. Bb1 {[%clk 0:00:19.2]}
44... Bxd5 {[%clk 0:00:03.6]} 45. b5 {[%clk 0:00:18.7]} 45... Kc5 {[%clk
0:00:03]} 46. c4 {[%clk 0:00:17.7]} 46... Bxc4 {[%clk 0:00:02.9]} 47. Ke5 {[%clk
0:00:17.2]} 47... Kxb5 {[%clk 0:00:01.7]} 48. Kd6 {[%clk 0:00:15.8]} 48... Kb4
{[%clk 0:00:02.3]} 49. Ke7 {[%clk 0:00:14.9]} 49... Kc3 {[%clk 0:00:02.7]} 50.
f7 {[%clk 0:00:14.4]} 50... Bxf7 {[%clk 0:00:03.4]} 51. Kxf7 {[%clk 0:00:14.2]}
51... Kb2 {[%clk 0:00:04.3]} 52. Bg6 {[%clk 0:00:10.3]} 52... a2 {[%clk
0:00:04.8]} 53. Kg7 {[%clk 0:00:10.1]} 53... a1=Q {[%clk 0:00:05.7]} 54. Kxh6
{[%clk 0:00:10.3]} 54... Qa6 {[%clk 0:00:06.2]} 55. h5 {[%clk 0:00:09.3]} 55...
Kc3 {[%clk 0:00:07.1]} 56. Kg7 {[%clk 0:00:09.7]} 56... Qb7+ {[%clk 0:00:07.3]}
57. Bf7 {[%clk 0:00:09.2]} 57... Qg2+ {[%clk 0:00:07.8]} 58. Kh7 {[%clk
0:00:07.7]} 58... Qg5 {[%clk 0:00:07.2]} 59. h6 {[%clk 0:00:06.8]} 59... Kd4
{[%clk 0:00:07.7]} 60. Bg6 {[%clk 0:00:04.2]} 60... Qf6 {[%clk 0:00:08]} 0-1